fUSD/lending_fUSD_20241104
["ID","MTS","AMOUNT","RATE_DAILY","PERIOD"]
[341235724,1730710239655,-516.6,0.0004155,2]
[341235725,1730710239665,-150.0,0.0004155,2]
[341235726,1730710239674,-500.0,0.0004155,2]
[341235727,1730710239683,-554.94,0.0004155,2]
[341235728,1730710239692,-500.0,0.0004155,2]
[341235729,1730710239701,-500.0,0.0004155,2]
[341235730,1730710239710,-569.14,0.0004155,2]
[341235731,1730710239719,-500.0,0.0004155,2]
[341235732,1730710239730,-500.0,0.0004155,2]
[341235733,1730710239739,-500.0,0.0004155,2]
[341235734,1730710239748,-500.0,0.0004155,2]
[341235735,1730710239757,-500.0,0.0004155,2]
[341235736,1730710239766,-562.74,0.0004155,2]
[341235737,1730710239776,-500.0,0.0004155,2]
[341235738,1730710239785,-500.0,0.0004155,2]
[341235739,1730710239794,-500.0,0.0004155,2]
[341235740,1730710239804,-500.0,0.0004155,2]
[341235741,1730710239813,-500.0,0.0004155,2]
[341235743,1730710239823,-500.0,0.0004155,2]
[341235745,1730710239832,-611.26,0.0004155,2]
[341235747,1730710239842,-500.0,0.0004155,2]
[341235749,1730710239851,-500.0,0.0004155,2]
[341235751,1730710239861,-500.0,0.0004155,2]
[341235753,1730710239871,-181.50585952,0.00041824,2]
[341235755,1730710239881,-235.44,0.00041824,2]
[341235757,1730710239891,-500.0,0.00041824,2]
[341235759,1730710239900,-500.0,0.00041824,2]
[341235761,1730710239911,-207.74,0.00041824,2]
[341235763,1730710239920,-500.0,0.00041824,2]
[341235765,1730710239929,-500.0,0.00041824,2]
[341235767,1730710239939,-150.3057357,0.00041949,15]
[341235769,1730710239948,-263.60313148,0.00042098,2]
[341235771,1730710239958,-258.32,0.00042098,2]
[341235773,1730710239967,-322.42,0.00042098,2]
[341235775,1730710239976,-150.0,0.00042177,2]
[341235777,1730710239986,-9204.638975,0.00042911,4]
[341235779,1730710239995,-500.0,0.00043147,2]
[341235780,1730710240004,-500.0,0.00043147,2]
[341235782,1730710240014,-500.0,0.00043147,2]
[341235784,1730710240023,-500.0,0.00043147,2]
[341235785,1730710240032,-500.0,0.00043147,2]
[341235786,1730710240042,-500.0,0.00043147,2]
[341235787,1730710240051,-500.0,0.00043147,2]
[341235789,1730710240060,-500.0,0.00043147,2]
[341235791,1730710240069,-500.0,0.00043147,2]
[341235793,1730710240081,-500.0,0.00043147,2]
[341235795,1730710240089,-500.0,0.00043147,2]
[341235797,1730710240099,-500.0,0.00043147,2]
[341235799,1730710240108,-500.0,0.00043148,2]
[341235801,1730710240117,-500.0,0.00043148,2]
[341235803,1730710240127,-566.56252608,0.00043148,2]
[341235805,1730710240136,-500.0,0.00043148,2]
[341235807,1730710240145,-500.0,0.00043148,2]
[341235809,1730710240155,-506.79189896,0.00043148,2]
[341235811,1730710240169,-504.16296622,0.00043148,2]
[341235813,1730710240178,-500.0,0.00043148,2]
[341235815,1730710240187,-500.0,0.00043148,2]
[341235817,1730710240196,-500.0,0.00043148,2]
[341235819,1730710240206,-500.0,0.00043148,2]
[341235821,1730710240216,-473.39335092,0.00043148,2]
[341235823,1730710240225,-200.0,0.00043148,2]
[341235825,1730710240235,-500.0,0.00043148,2]
[341235827,1730710240244,-621.6687512,0.00043148,2]
[341235828,1730710240254,-500.0,0.00043148,2]
[341235829,1730710240263,-293.72600005,0.00043148,2]
[341235830,1730710240273,-500.0,0.00043148,2]
[341235831,1730710240282,-500.0,0.00043148,2]
[341235832,1730710240291,-500.0,0.00043148,2]
[341235833,1730710240301,-500.0,0.00043148,2]
[341235834,1730710240310,-500.0,0.00043148,2]
[341235835,1730710240320,-500.0,0.00043148,2]
[341235836,1730710240332,-500.0,0.00043148,2]
[341235837,1730710240342,-500.0,0.00043148,2]
[341235838,1730710240351,-500.0,0.00043148,2]
[341235839,1730710240360,-500.0,0.00043148,2]
[341235840,1730710240370,-500.0,0.00043148,2]
[341235841,1730710240382,-500.0,0.00043148,2]
[341235842,1730710240391,-500.0,0.00043148,2]
[341235843,1730710240401,-500.0,0.00043148,2]
[341235844,1730710240410,-500.0,0.00043148,2]
[341235845,1730710240420,-500.0,0.00043148,2]
[341235846,1730710240429,-500.0,0.00043148,2]
[341235847,1730710240439,-514.67679206,0.00043148,2]
[341235848,1730710240450,-506.40246502,0.00043148,2]
[341235849,1730710240459,-500.0,0.00043148,2]
[341235850,1730710240470,-500.0,0.00043148,2]
[341235851,1730710240480,-500.0,0.00043148,2]
[341235852,1730710240490,-500.0,0.00043148,2]
[341235853,1730710240500,-500.0,0.00043148,2]
[341235854,1730710240509,-500.0,0.00043148,2]
[341235855,1730710240518,-500.0,0.00043148,2]
[341235856,1730710240527,-500.0,0.00043148,2]
[341235857,1730710240537,-500.0,0.00043149,2]
[341235858,1730710240546,-500.0,0.00043149,2]
[341235859,1730710240555,-500.0,0.00043149,2]
[341235860,1730710240564,-500.0,0.00043149,2]
[341235861,1730710240575,-500.0,0.00043149,2]
[341235862,1730710240584,-500.0,0.00043149,2]
[341235863,1730710240594,-500.0,0.00043149,2]
[341235864,1730710240603,-500.0,0.00043149,2]
[341235865,1730710240613,-500.0,0.00043149,2]
[341235866,1730710240622,-500.0,0.00043149,2]
[341235867,1730710240631,-500.0,0.00043149,2]
[341235868,1730710240640,-500.0,0.00043149,2]
[341235869,1730710240649,-500.0,0.00043149,2]
[341235870,1730710240658,-500.0,0.00043149,2]
[341235871,1730710240668,-500.0,0.00043149,2]
[341235872,1730710240677,-500.0,0.00043149,2]
[341235873,1730710240686,-500.0,0.00043149,2]
[341235874,1730710240695,-500.0,0.00043149,2]
[341235875,1730710240705,-500.0,0.00043149,2]
[341235876,1730710240714,-500.0,0.00043149,2]
[341235877,1730710240724,-500.0,0.00043149,2]
[341235878,1730710240734,-500.0,0.00043149,2]
[341235879,1730710240743,-500.0,0.00043149,2]
[341235880,1730710240752,-500.0,0.00043149,2]
[341235881,1730710240761,-500.0,0.00043149,2]
[341235882,1730710240770,-500.0,0.00043149,2]
[341235883,1730710240779,-500.0,0.00043149,2]
[341235884,1730710240789,-639.27997894,0.00043149,2]
[341235885,1730710240798,-500.0,0.00043149,2]
[341235886,1730710240807,-150.0,0.00043259,2]
[341235887,1730710240816,-3735.0,0.00043259,30]
[341235888,1730710240826,-500.0,0.00043421,2]
[341235889,1730710240835,-500.0,0.00043421,2]
[341235890,1730710240844,-500.0,0.00043421,2]
[341235891,1730710240854,-500.0,0.00043421,2]
[341235892,1730710240863,-500.0,0.00043421,2]
[341235893,1730710240872,-500.0,0.00043421,2]
[341235894,1730710240882,-500.0,0.00043421,2]
[341235895,1730710240891,-442.48,0.00043421,2]
[341235896,1730710240901,-523.03,0.00043421,2]
[341235897,1730710240910,-500.0,0.00043421,2]
[341235898,1730710240920,-500.0,0.00043421,2]
[341235899,1730710240929,-500.0,0.00043421,2]
[341235900,1730710240938,-500.0,0.00043422,2]
[341235901,1730710240948,-500.0,0.00043422,2]
[341235902,1730710240957,-500.0,0.00043422,2]
[341235903,1730710240966,-500.0,0.00043422,2]
[341235904,1730710240976,-516.49104334,0.00043422,2]
[341235905,1730710240985,-500.0,0.00043422,2]
[341235906,1730710240995,-500.0,0.00043422,2]
[341235907,1730710241005,-500.0,0.00043422,2]
[341235908,1730710241014,-500.0,0.00043422,2]
[341235909,1730710241023,-500.0,0.00043422,2]
[341235910,1730710241031,-500.0,0.00043422,2]
[341235911,1730710241040,-500.0,0.00043422,2]
[341235912,1730710241050,-200.0,0.00043422,2]
[341235913,1730710241060,-500.0,0.00043422,2]
[341235914,1730710241069,-500.0,0.00043422,2]
[341235915,1730710241081,-500.0,0.00043422,2]
[341235916,1730710241090,-500.0,0.00043422,2]
[341235917,1730710241099,-500.0,0.00043422,2]
[341235918,1730710241108,-500.0,0.00043422,2]
[341235919,1730710241117,-500.0,0.00043422,2]
[341235920,1730710241126,-500.0,0.00043422,2]
[341235921,1730710241135,-500.0,0.00043422,2]
[341235922,1730710241144,-500.0,0.00043422,2]
[341235923,1730710241153,-500.0,0.00043422,2]
[341235924,1730710241163,-500.0,0.00043422,2]
[341235925,1730710241174,-500.0,0.00043422,2]
[341235926,1730710241183,-500.0,0.00043422,2]
[341235927,1730710241192,-500.0,0.00043422,2]
[341235928,1730710241201,-500.0,0.00043422,2]
[341235929,1730710241212,-591.1,0.00043422,2]
[341235930,1730710241221,-500.0,0.00043422,2]
[341235931,1730710241229,-500.0,0.00043422,2]
[341235932,1730710241238,-500.0,0.00043422,2]
[341235933,1730710241248,-500.0,0.00043422,2]
[341235934,1730710241257,-529.4,0.00043422,2]
[341235935,1730710241265,-500.0,0.00043422,2]
[341235936,1730710241274,-500.0,0.00043422,2]
[341235937,1730710241283,-500.0,0.00043422,2]
[341235938,1730710241292,-638.4,0.00043422,2]
[341235939,1730710241301,-500.0,0.00043422,2]
[341235940,1730710241310,-365.12025489,0.00043422,2]
[341235941,1730710241319,-552.82,0.00043422,2]
[341235942,1730710241330,-500.0,0.00043422,2]
[341235943,1730710241339,-500.0,0.00043422,2]
[341235944,1730710241348,-500.0,0.00043422,2]
[341235945,1730710241356,-500.0,0.00043422,2]
[341235946,1730710241366,-500.0,0.00043422,2]
[341235947,1730710241375,-500.0,0.00043422,2]
[341235948,1730710241383,-500.0,0.00043422,2]
[341235949,1730710241392,-500.0,0.00043422,2]
[341235950,1730710241401,-500.0,0.00043422,2]
[341235951,1730710241410,-500.0,0.00043422,2]
[341235952,1730710241419,-500.0,0.00043422,2]
[341235953,1730710241427,-500.0,0.00043422,2]
[341235954,1730710241436,-500.0,0.00043422,2]
[341235955,1730710241445,-500.0,0.00043422,2]
[341235956,1730710241454,-500.0,0.00043422,2]
[341235957,1730710241463,-500.0,0.00043422,2]
[341235958,1730710241474,-500.0,0.00043422,2]
[341235959,1730710241483,-500.0,0.00043423,2]
[341235960,1730710241492,-500.0,0.00043423,2]
[341235961,1730710241502,-500.0,0.00043423,2]
[341235962,1730710241511,-500.0,0.00043423,2]
[341235963,1730710241520,-500.0,0.00043423,2]
[341235964,1730710241529,-500.0,0.00043423,2]
[341235965,1730710241539,-500.0,0.00043423,2]
[341235966,1730710241548,-500.0,0.00043423,2]
[341235967,1730710241557,-500.0,0.00043423,2]
[341235968,1730710241566,-303.01302312,0.00043423,2]
[341235969,1730710241576,-500.0,0.00043423,2]
[341235970,1730710241585,-500.0,0.00043423,2]
[341235971,1730710241594,-500.0,0.00043423,2]
[341235972,1730710241603,-500.0,0.00043423,2]
[341235973,1730710241613,-168.82,0.00043423,2]
[341235974,1730710241622,-631.22,0.00043423,2]
[341235975,1730710241632,-500.0,0.00043423,2]
[341235976,1730710241641,-500.0,0.00043423,2]
[341235977,1730710241651,-500.0,0.00043423,2]
[341235978,1730710241660,-500.0,0.00043423,2]
[341235979,1730710241669,-500.0,0.00043423,2]
[341235980,1730710241679,-500.0,0.00043423,2]
[341235981,1730710241689,-500.0,0.00043423,2]
[341235982,1730710241698,-500.0,0.00043423,2]
[341235983,1730710241708,-500.0,0.00043423,2]
[341235984,1730710241719,-843.11,0.00043435,2]
[341235985,1730710241728,-205.29665182,0.000435,15]
[341235986,1730710241737,-317.89053443,0.000435,2]
[341235987,1730710241747,-541.3907806,0.00043598,2]
[341235988,1730710241756,-548.44439682,0.00043598,2]
[341235989,1730710241766,-500.0,0.00043598,2]
[341235990,1730710241775,-500.0,0.00043598,2]
[341235991,1730710241785,-500.0,0.00043598,2]
[341235992,1730710241794,-500.0,0.00043598,2]
[341235993,1730710241803,-500.0,0.00043598,2]
[341235994,1730710241813,-500.0,0.00043598,2]
[341235995,1730710241822,-500.0,0.00043598,2]
[341235996,1730710241832,-1272.52242952,0.00043598,120]
[341235997,1730710241842,-95729.88509494,0.000436,120]
[341235998,1730710241930,-1014.26609025,0.000436,120]
[341235999,1730710242003,-200.0,0.0004082,2]
[341236000,1730710242014,-73.70476842,0.00041063,30]
[341236001,1730710242028,-534.80474255,0.00041063,30]
[341236002,1730710242038,-293.93629405,0.000436,120]
[341236003,1730710242057,-150.0,0.00041095,2]
[341236004,1730710242067,-143417.74205187,0.000436,120]
[341236005,1730710242083,-200.0,0.00041095,2]
[341236006,1730710242093,-4718.13598347,0.000436,120]
[341236019,1730710242705,-423.56865551,0.000411,2]
[341236020,1730710242715,-331.52,0.00043412,10]
[341236021,1730710242725,-4451.3472486,0.000436,120]
[341236022,1730710242760,-200.0,0.00041444,10]
[341236023,1730710242770,-150.0,0.00041444,10]
[341236024,1730710242780,-3560.991247,0.000436,120]
[341236025,1730710242870,-21813.69598982,0.000436,120]
[341236026,1730710242880,-17160.1238286,0.000436,120]
[341236027,1730710242890,-185.11,0.00043612,2]
[341236028,1730710242900,-1800.0,0.0004367,4]
[341236029,1730710242909,-207.03016122,0.0004368,2]
[341236030,1730710242919,-153.06,0.00043686,2]
[341236031,1730710242928,-339.36,0.00043695,2]
[341236032,1730710242938,-500.0,0.00043695,2]
[341236033,1730710242948,-500.0,0.00043695,2]
[341236034,1730710242957,-342.42,0.00043695,2]
[341236035,1730710242966,-217.56,0.00043695,2]
[341236036,1730710242975,-357.42,0.00043695,2]
[341236037,1730710243085,-402.47,0.00043695,2]
[341236038,1730710243112,-500.0,0.00043695,2]
[341236039,1730710243122,-176.45746106,0.00043696,2]
[341236040,1730710243131,-500.0,0.00043696,2]
[341236042,1730710243140,-500.0,0.00043696,2]
[341236043,1730710243150,-470.14319612,0.00043696,2]
[341236046,1730710243159,-500.0,0.00043696,2]
[341236048,1730710243171,-380.3,0.00043696,2]
[341236049,1730710243180,-500.0,0.00043696,2]
[341236050,1730710243189,-500.0,0.00043696,2]
[341236051,1730710243198,-500.0,0.00043696,2]
[341236052,1730710243207,-500.0,0.00043696,2]
[341236053,1730710243217,-500.0,0.00043696,2]
[341236054,1730710243226,-200.0,0.00043696,2]
[341236055,1730710243236,-500.0,0.00043696,2]
[341236056,1730710243246,-500.0,0.00043696,2]
[341236057,1730710243256,-500.0,0.00043696,2]
[341236058,1730710243266,-500.0,0.00043696,2]
[341236059,1730710243275,-500.0,0.00043696,2]
[341236060,1730710243284,-500.0,0.00043696,2]
[341236061,1730710243293,-500.0,0.00043696,2]
[341236062,1730710243302,-500.0,0.00043696,2]
[341236063,1730710243311,-500.0,0.00043696,2]
[341236064,1730710243320,-500.0,0.00043696,2]
[341236065,1730710243332,-500.0,0.00043696,2]
[341236066,1730710243341,-500.0,0.00043696,2]
[341236067,1730710243350,-500.0,0.00043696,2]
[341236068,1730710243359,-500.0,0.00043696,2]
[341236069,1730710243368,-500.0,0.00043696,2]
[341236070,1730710243377,-500.0,0.00043696,2]
[341236071,1730710243386,-500.0,0.00043696,2]
[341236072,1730710243395,-623.32,0.00043696,2]
[341236073,1730710243404,-500.0,0.00043696,2]
[341236074,1730710243413,-500.0,0.00043696,2]
[341236075,1730710243422,-359.1,0.00043696,2]
[341236076,1730710243432,-500.0,0.00043696,2]
[341236077,1730710243441,-500.0,0.00043696,2]
[341236078,1730710243450,-500.0,0.00043696,2]
[341236079,1730710243459,-500.0,0.00043696,2]
[341236080,1730710243469,-500.0,0.00043696,2]
[341236081,1730710243478,-500.0,0.00043696,2]
[341236082,1730710243488,-500.0,0.00043696,2]
[341236083,1730710243497,-227.86,0.00043696,2]
[341236084,1730710243506,-211.24,0.00043696,2]
[341236085,1730710243515,-239.66602431,0.00043696,2]
[341236086,1730710243525,-587.42666295,0.00043696,2]
[341236087,1730710243534,-500.0,0.00043696,2]
[341236088,1730710243542,-500.0,0.00043696,2]
[341236089,1730710243552,-500.0,0.00043696,2]
[341236090,1730710243561,-500.0,0.00043697,2]
[341236091,1730710243570,-454.02,0.00043697,2]
[341236092,1730710243581,-417.16,0.00043697,2]
[341236093,1730710243590,-500.0,0.00043697,2]
[341236094,1730710243599,-230.98,0.00043697,2]
[341236095,1730710243608,-241.88,0.00043697,2]
[341236096,1730710243617,-5804.68738638,0.0004377,120]
[341236106,1730710245715,-150.0,0.00042911,4]
[341236107,1730710245724,-100.7,0.00042911,4]
[341236108,1730710245930,-710.91009403,0.0004377,120]
[341236218,1730711203083,-156.32,0.00015342,2]
[341236219,1730711203104,-250.0,0.00021,2]
[341236220,1730711203125,-300.0,0.00023,2]
[341236221,1730711203144,-350.0,0.00025,2]
[341236222,1730711203164,-1276.0,0.000255,2]
[341236223,1730711203183,-562.65543636,0.000255,2]
[341236224,1730711218504,-2000000.0,0.00044232,30]
[341236225,1730711223432,-2000000.0,0.00044232,30]
[341236234,1730711257985,-2000000.0,0.00044232,30]
[341236235,1730711261993,-2000000.0,0.00044232,30]
[341236236,1730711268500,-3000000.0,0.00044232,30]
[341236237,1730711272151,-3000000.0,0.00044232,30]
[341236238,1730711276056,-3000000.0,0.00044232,30]
[341236239,1730711279438,-3000000.0,0.00044232,30]
[341236240,1730711291301,-3000000.0,0.00044232,30]
[341236241,1730711317820,-4000000.0,0.00044232,30]
[341236242,1730711323335,-4000000.0,0.00044232,30]
[341236243,1730711333500,-4000000.0,0.00044232,30]
[341236452,1730711391341,-5000000.0,0.00044235,30]
[341236461,1730711431921,-366.91621323,0.00027,2]
[341236462,1730711431978,-33.08378677,0.00027,2]
[341236463,1730711431988,-450.0,0.00029,2]
[341236464,1730711431997,-500.0,0.00031,2]
[341236465,1730711432007,-171.25984588,0.00032877,2]
[341236466,1730711432016,-550.0,0.00033,2]
[341236467,1730711432026,-245.65637335,0.00033,2]
[341236468,1730711432037,-1406.9236341,0.00033,2]
[341236469,1730711432049,-265.83623177,0.00033,2]
[341236470,1730711432090,-533.39396293,0.00033,2]
[341236471,1730711432100,-500.0,0.00035416,2]
[341236472,1730711432109,-18965.9977,0.00035416,2]
[341236473,1730711432118,-150.0,0.00035535,7]
[341236474,1730711432128,-780.0,0.00035615,2]
[341236475,1730711432137,-153.0,0.00035616,2]
[341236476,1730711432147,-153.0,0.00035616,2]
[341236477,1730711432156,-153.0,0.00035616,2]
[341236478,1730711432166,-153.0,0.00035616,2]
[341236479,1730711432175,-153.0,0.00035616,2]
[341236480,1730711432184,-153.0,0.00035616,2]
[341236481,1730711432193,-153.0,0.00035616,2]
[341236482,1730711432202,-153.0,0.00035616,2]
[341236484,1730711432212,-153.0,0.00035616,2]
[341236486,1730711432222,-153.0,0.00035616,2]
[341236488,1730711432232,-153.0,0.00035616,2]
[341236490,1730711432242,-153.0,0.00035616,2]
[341236492,1730711432251,-153.0,0.00035616,2]
[341236494,1730711432260,-153.0,0.00035616,2]
[341236496,1730711432270,-153.0,0.00035616,2]
[341236498,1730711432279,-153.0,0.00035616,2]
[341236500,1730711432288,-153.0,0.00035616,2]
[341236501,1730711432298,-156.32,0.00035616,2]
[341236503,1730711432307,-153.0,0.00035616,2]
[341236505,1730711432316,-153.0,0.00035616,2]
[341236507,1730711432325,-153.0,0.00035616,2]
[341236509,1730711432334,-153.0,0.00035616,2]
[341236511,1730711432344,-153.0,0.00035616,2]
[341236513,1730711432353,-153.0,0.00035616,2]
[341236514,1730711432362,-153.0,0.00035616,2]
[341236515,1730711432371,-153.0,0.00035616,2]
[341236516,1730711432382,-153.0,0.00035616,2]
[341236518,1730711432391,-153.0,0.00035616,2]
[341236520,1730711432401,-153.0,0.00035616,2]
[341236522,1730711432410,-153.0,0.00035616,2]
[341236524,1730711432420,-153.0,0.00035616,2]
[341236526,1730711432429,-153.0,0.00035616,2]
[341236528,1730711432439,-153.0,0.00035616,2]
[341236530,1730711432447,-153.0,0.00035616,2]
[341236531,1730711432457,-153.0,0.00035616,2]
[341236533,1730711432466,-153.0,0.00035616,2]
[341236535,1730711432475,-153.0,0.00035616,2]
[341236537,1730711432485,-153.0,0.00035616,2]
[341236539,1730711432495,-153.0,0.00035616,2]
[341236541,1730711432504,-153.0,0.00035616,2]
[341236543,1730711432513,-153.0,0.00035616,2]
[341236545,1730711432522,-153.0,0.00035616,2]
[341236547,1730711432531,-153.0,0.00035616,2]
[341236549,1730711432540,-153.0,0.00035616,2]
[341236551,1730711432549,-500.0,0.0003574,2]
[341236553,1730711432559,-2432.18,0.00035958,2]
[341236555,1730711432568,-299.77,0.00036072,2]
[341236557,1730711432577,-23890.0,0.00036082,2]
[341236559,1730711432587,-250.0,0.00036361,2]
[341236561,1730711432597,-360.0,0.00036412,2]
[341236563,1730711432607,-2432.18,0.00036536,2]
[341236565,1730711432617,-2432.18,0.00037113,2]
[341236567,1730711432627,-761.94,0.00037222,2]
[341236569,1730711432637,-299.77,0.00037681,2]
[341236571,1730711432646,-1360.30498526,0.00037691,2]
[341236574,1730711432659,-1071.87501474,0.00037691,2]
[341236576,1730711432668,-150.0,0.000377,2]
[341236578,1730711432677,-78.12498526,0.00038268,15]
[341236612,1730711432997,-5000000.0,0.00044235,30]
[341236780,1730711436084,-5000000.0,0.00044235,30]
[341236781,1730711438101,-421.87501474,0.00038268,15]
[341236782,1730711438111,-290.7618386,0.00038268,15]
[341236783,1730711438121,-1354.27393866,0.00038269,2]
[341236814,1730711440117,-1077.90606134,0.00038269,2]
[341236815,1730711440126,-2086.84393866,0.00038322,2]
[341236816,1730711443366,-4539.00524468,0.00038322,2]
[341236817,1730711443376,-299.77,0.00038343,2]
[341236818,1730711443385,-299.77,0.00038343,2]
[341236819,1730711443394,-299.77,0.00038343,2]
[341236820,1730711443403,-299.77,0.00038345,2]
[341236821,1730711443412,-299.77,0.00038345,2]
[341236822,1730711443421,-47.89128095,0.00038346,2]
[341236823,1730711445442,-251.87871905,0.00038346,2]
[341236824,1730711445452,-299.77,0.00038346,2]
[341236825,1730711445461,-299.77,0.00038346,2]
[341236826,1730711445470,-42604.30924922,0.00038353,5]
[341236827,1730711445480,-500.0,0.00038355,2]
[341236828,1730711445489,-1000.0,0.00038355,2]
[341236829,1730711445498,-684.44,0.00038355,2]
[341236830,1730711445509,-500.0,0.00038355,2]
[341236831,1730711445519,-500.0,0.00038355,2]
[341236832,1730711445528,-500.0,0.00038355,2]
[341236833,1730711445538,-447.34153123,0.00038355,2]
[341236834,1730711445547,-3994.7,0.00038355,2]
[341236835,1730711445557,-218.26836243,0.00038355,2]
[341236836,1730711445567,-500.0,0.00038355,2]
[341236837,1730711445577,-500.0,0.00038355,2]
[341236838,1730711445586,-1882.57,0.00038355,2]
[341236840,1730711445596,-500.0,0.00038355,2]
[341236841,1730711445605,-500.0,0.00038355,2]
[341236842,1730711445615,-500.0,0.00038355,2]
[341236843,1730711445624,-500.0,0.00038355,2]
[341236844,1730711445634,-330.78826893,0.00038355,2]
[341236845,1730711445643,-500.0,0.00038355,2]
[341236846,1730711445652,-500.0,0.00038355,2]
[341236847,1730711445662,-1176.28,0.00038355,2]
[341236848,1730711445671,-5855.7,0.00038355,2]
[341236849,1730711445681,-1152.43,0.00038355,2]
[341236850,1730711445691,-500.0,0.00038355,2]
[341236851,1730711445700,-1681.01,0.00038355,2]
[341236852,1730711445710,-500.0,0.00038355,2]
[341236853,1730711445720,-500.0,0.00038355,2]
[341236854,1730711445729,-162.67536324,0.00038355,2]
[341236855,1730711445739,-500.0,0.00038355,2]
[341236856,1730711445748,-500.0,0.00038355,2]
[341236857,1730711445757,-500.0,0.00038355,2]
[341236858,1730711445766,-500.0,0.00038355,2]
[341236859,1730711445776,-1398.78,0.00038355,2]
[341236860,1730711445786,-1238.48,0.00038355,2]
[341236861,1730711445795,-500.0,0.00038355,2]
[341236862,1730711445804,-567.90689351,0.00038355,2]
[341236863,1730711445814,-500.0,0.00038355,2]
[341236864,1730711445823,-500.0,0.00038355,2]
[341236865,1730711445836,-1242.24,0.00038355,2]
[341236866,1730711445846,-500.0,0.00038355,2]
[341236867,1730711445855,-3905.42,0.00038355,2]
[341236868,1730711445865,-500.0,0.00038355,2]
[341236869,1730711445875,-500.0,0.00038355,2]
[341236870,1730711445884,-500.0,0.00038355,2]
[341236871,1730711445893,-500.0,0.00038355,2]
[341236872,1730711445903,-324.61945299,0.00038355,15]
[341236873,1730711445915,-218.0,0.00038356,2]
[341236874,1730711445925,-651307.98,0.00038356,2]
[341236875,1730711445934,-175.0,0.000384,120]
[341236876,1730711445945,-326.45598174,0.00038529,2]
[341236877,1730711445954,-500.0,0.00038629,2]
[341236878,1730711445963,-1041.69122434,0.00038629,2]
[341236879,1730711445973,-684.44,0.00038629,2]
[341236880,1730711445983,-500.0,0.00038629,2]
[341236881,1730711445993,-500.0,0.00038629,2]
[341236882,1730711446002,-500.0,0.00038629,2]
[341236883,1730711446012,-3994.7,0.00038629,2]
[341236884,1730711446123,-500.0,0.00038629,2]
[341236885,1730711446135,-500.0,0.00038629,2]
[341236886,1730711446146,-1882.57,0.00038629,2]
[341236887,1730711446156,-500.0,0.00038629,2]
[341236888,1730711446167,-500.0,0.00038629,2]
[341236889,1730711446177,-500.0,0.00038629,2]
[341236890,1730711446187,-268.2572324,0.00038629,2]
[341236891,1730711446197,-500.0,0.00038629,2]
[341236892,1730711446208,-500.0,0.00038629,2]
[341236893,1730711446218,-1176.28,0.00038629,2]
[341236894,1730711446228,-5855.7,0.00038629,2]
[341236895,1730711446237,-1152.43,0.00038629,2]
[341236896,1730711446246,-222.60084314,0.00038629,2]
[341236897,1730711446258,-1681.01,0.00038629,2]
[341236898,1730711446269,-573.90879304,0.00038629,2]
[341236899,1730711446280,-500.0,0.00038629,2]